bitfinex-derivatives/quotes_ETHF0:USTF0_20240901
["timestamp","ask_amount","ask_price","bid_price","bid_amount"]
[1725200080510,4.1008,2443.0,2442.7,3.2078]
[1725200080708,2.21887172,2443.7,2442.7,3.2078]
[1725200080911,3.2078,2444.9,2443.4,3.2078]
[1725200081118,0.5627,2446.0,2443.6,3.2078]
[1725200081119,3.2078,2445.2,2443.6,3.2078]
[1725200081324,3.2078,2445.2,2442.8,9.76459188]
[1725200081325,4.39258954,2443.6,2442.9,3.2078]
[1725200081509,3.2078,2443.8,2442.9,3.2078]
[1725200081709,1.5992419,2446.6,2442.6,3.2078]
[1725200081710,4.1008,2443.0,2442.6,3.2078]
[1725200081915,8.49338954,2443.6,2442.9,3.2078]
[1725200082124,9.2078,2443.6,2443.0,5.33204444]
[1725200082308,9.2078,2443.6,2442.5,3.2078]
[1725200082309,3.2078,2443.3,2441.7,0.5496]
[1725200082506,3.2078,2443.2,2442.3,3.2078]
[1725200082709,7.86979129,2443.2,2443.1,0.0061449]
[1725200082911,0.0061449,2443.5,2443.1,0.0061449]
[1725200083108,0.0061449,2443.5,2443.4,3.2078]
[1725200083309,0.0061449,2443.5,2443.4,6.0]
[1725200083515,0.0061449,2443.5,2443.4,15.53093471]
[1725200083818,0.0061449,2443.5,2443.1,0.0061449]
[1725200084019,0.0061449,2443.5,2443.2,4.0928]
[1725200084315,0.0061449,2443.5,2443.4,5.23719614]
[1725200084517,3.2078,2444.6,2443.4,3.2078]
[1725200084713,3.2078,2444.6,2443.4,8.44499614]
[1725200084913,4.43582804,2444.5,2443.4,8.44499614]
[1725200085217,4.39486583,2444.7,2443.7,3.2078]
[1725200085416,3.2078,2444.6,2444.0,0.0202]
[1725200085720,3.2078,2444.6,2442.9,0.5564]
[1725200085721,3.2078,2444.1,2442.9,0.5564]
[1725200085911,3.2139449,2444.4,2444.0,0.0061449]
[1725200086116,0.0061449,2444.4,2444.0,0.0061449]
[1725200086624,3.2078,2444.1,2444.0,0.0061449]
[1725200087021,7.299,2444.1,2444.0,0.0061449]
[1725200087221,17.55474559,2444.1,2444.0,4.9e-06]
[1725200087416,13.299,2444.1,2444.0,4.9e-06]
[1725200087730,0.0061449,2444.4,2444.0,4.9e-06]
[1725200088019,0.0061449,2444.4,2444.0,9.2078049]
[1725200088227,0.0061449,2444.4,2444.0,4.9e-06]
[1725200088410,4.65312521,2444.3,2444.0,4.9e-06]
[1725200088821,0.0061449,2444.4,2444.0,4.9e-06]
[1725200089122,3.2078,2444.1,2444.0,4.9e-06]
[1725200089515,7.49146472,2444.1,2444.0,4.9e-06]
[1725200089715,3.2139449,2444.4,2444.0,4.0912049]
[1725200089914,0.0061449,2444.4,2444.0,4.9e-06]
[1725200090318,0.0061449,2444.4,2444.1,4.0912]
[1725200090617,0.0061449,2444.4,2444.1,12.66636837]
[1725200090816,3.2078,2445.3,2444.2,4.50034]
[1725200091016,0.5652,2445.8,2444.5,3.2078]
[1725200091220,4.41016167,2445.7,2444.5,3.2078]
[1725200091415,3.2078,2445.6,2444.8,3.2078]
[1725200091617,0.5652,2445.8,2444.6,5.83197365]
[1725200091809,0.5652,2445.8,2444.1,0.40916]
[1725200091810,3.2078,2445.0,2444.1,0.4096]
[1725200092016,3.773,2445.8,2444.2,0.4096]
[1725200092215,0.0061449,2445.4,2444.5,5.42237365]
[1725200092414,0.0061449,2445.4,2444.4,3.2078]
[1725200092817,0.0061449,2445.4,2444.7,3.2078]
[1725200093014,0.0061449,2445.4,2445.0,0.0202]
[1725200093417,3.2078,2445.1,2445.0,0.0202]
[1725200093828,0.0061449,2445.4,2445.0,4.1098]
[1725200094017,0.0061449,2445.4,2445.1,4.0896]
[1725200094218,0.0061449,2445.4,2445.2,4.0896]
[1725200094423,0.0061449,2445.4,2445.3,3.2078]
[1725200094627,3.2078,2446.6,2445.3,18.62826179]
[1725200094920,3.2078,2446.6,2445.6,3.2078]
[1725200095231,3.2078,2445.9,2445.0,0.0202]
[1725200095414,4.36396927,2446.5,2445.0,0.0202]
[1725200095415,3.2078,2445.1,2445.0,0.0202]
[1725200095614,3.2078,2445.4,2445.0,0.0202]
[1725200096125,3.2078,2445.1,2443.8,3.2078]
[1725200096323,3.2078,2444.4,2443.8,3.2078]
[1725200096528,3.2078,2444.9,2443.9,5.30834234]
[1725200097019,3.89930192,2444.8,2444.6,3.2078]
[1725200097235,0.00613221,2445.3,2444.7,0.5681]
[1725200097416,3.2078,2446.4,2445.1,3.61679]
[1725200097612,0.5776,2446.9,2445.4,3.2078]
[1725200097613,3.2078,2446.7,2445.4,3.2078]
[1725200097814,3.2078,2446.7,2445.5,0.5532]
[1725200098016,4.27494247,2446.3,2445.6,3.2078]
[1725200098331,3.7854,2446.9,2445.7,5.2778187]
[1725200098622,3.2078,2446.9,2445.7,5.2778187]
[1725200098825,4.27494247,2446.8,2445.7,5.2778187]
[1725200099023,0.00613221,2446.5,2446.1,0.00613221]
[1725200099422,4.27494247,2446.8,2446.1,0.00613221]
[1725200099423,3.2078,2447.4,2446.4,3.2078]
[1725200099629,3.2078,2447.5,2446.4,3.2078]
[1725200099829,40.8,2448.0,2446.5,5.30229185]
[1725200099830,7.52024953,2447.8,2446.5,5.30229185]
[1725200100127,3.2078,2447.5,2446.5,5.30229185]
[1725200100430,3.2078,2447.2,2446.5,5.30229185]
[1725200100634,3.2078,2446.7,2446.1,0.00613221]
[1725200101132,4.48159081,2446.6,2446.1,0.00613221]
[1725200101427,3.2078,2446.7,2446.1,0.00613221]
[1725200101632,4.48159081,2446.6,2446.1,0.00613221]
[1725200101825,3.61661,2446.2,2446.1,2.21e-06]
[1725200102335,4.31350643,2446.2,2446.1,4.08800221]
[1725200102630,0.00613221,2447.2,2446.1,13.29580221]
[1725200102933,0.00613221,2447.2,2446.6,3.2078]
[1725200103334,0.00613221,2447.2,2446.7,5.3564716]
[1725200103538,0.00613221,2447.2,2446.3,3.2078]
[1725200103833,3.21393221,2447.2,2446.5,3.2078]
[1725200104023,4.68523168,2447.1,2446.3,5.3564716]
[1725200104227,4.68523168,2447.1,2446.2,3.7926]
[1725200104228,4.68523168,2447.1,2446.5,3.2078]
[1725200104430,0.00613221,2447.2,2446.4,5.22749187]
[1725200104633,0.40867,2447.1,2446.4,5.22749187]
[1725200104828,3.2078,2446.8,2446.1,2.21e-06]
[1725200105032,3.2078,2446.4,2446.1,2.21e-06]
[1725200105436,8.43909276,2446.3,2446.1,2.21e-06]
[1725200105630,8.84789276,2446.3,2446.1,2.21e-06]
[1725200105833,4.35109276,2446.3,2446.1,4.08800221]
[1725200106027,3.2078,2446.8,2446.1,4.08800221]
[1725200106325,3.2078,2446.8,2446.2,5.41830096]
[1725200106533,5.05062875,2447.1,2446.4,3.2078]
[1725200106534,4.50132875,2447.1,2446.4,3.2078]
[1725200106730,0.00613221,2447.2,2446.7,3.2078]
[1725200107135,0.00613221,2447.2,2446.8,9.50470096]
[1725200107348,3.2078,2449.2,2447.1,3.2078]
[1725200107527,3.2078,2449.5,2448.4,3.2078]
[1725200107732,4.27479573,2449.2,2448.4,3.2078]
[1725200107931,3.2078,2449.5,2447.2,14.5902184]
[1725200107932,3.2078,2449.5,2449.0,3.2078]
[1725200108127,3.2078,2449.5,2448.5,14.22321989]
[1725200108128,3.2078,2450.0,2449.4,3.2078]
[1725200108345,3.2078,2450.3,2449.1,13.72202238]
[1725200108644,40.8,2451.3,2449.5,5.19755693]
[1725200108645,0.1351059,2449.9,2449.5,5.19755693]
[1725200108836,0.00613221,2449.9,2449.5,0.00613221]
[1725200109039,0.00613221,2449.9,2449.6,4.0824]
[1725200109238,0.00613221,2449.9,2449.6,5.23299207]
[1725200109669,0.00613221,2449.9,2449.7,4.0824]
[1725200109938,3.61565,2452.0,2450.2,0.0182516]
[1725200110140,3.2078,2452.4,2451.0,0.408]
[1725200110338,3.2078,2452.5,2451.2,3.2078]
[1725200110531,3.2078,2452.5,2451.3,0.408]
[1725200110730,3.2078,2452.5,2451.6,3.2078]
[1725200110935,0.6109,2452.9,2451.3,11.45896142]
[1725200110936,3.2078,2451.9,2451.3,11.45896142]
[1725200111240,0.00611945,2452.1,2451.7,0.00611945]
[1725200111632,0.00611945,2452.1,2451.8,5.2536737]
[1725200111945,11.84607954,2452.0,2451.7,0.00611945]
[1725200112240,11.84607954,2452.0,2450.0,1.01647]
[1725200112241,11.84607954,2452.0,2450.0,0.6083]
[1725200112430,11.84607954,2452.0,2449.9,3.2078]
[1725200112431,3.2078,2450.9,2449.9,3.2078]
[1725200112837,3.2078,2451.2,2450.3,5.2245801]
[1725200113039,3.2078,2450.5,2449.6,3.2078]
[1725200113239,4.38338522,2450.8,2450.1,3.6158]
[1725200113541,7.59118522,2452.4,2450.7,3.2078]
[1725200113729,0.5919,2453.6,2451.5,3.2078]
[1725200113730,3.2078,2452.8,2451.5,3.2078]
[1725200113930,3.2078,2452.5,2451.0,3.2078]
[1725200114142,0.5919,2453.6,2452.4,3.2078]
[1725200114143,3.2078,2453.1,2452.4,3.2078]
[1725200114443,0.5656,2454.4,2452.2,0.408]
[1725200114444,0.00611945,2452.4,2452.2,0.408]
[1725200114629,3.2078,2453.1,2452.1,3.2078]
[1725200114833,7.47264892,2453.4,2452.5,5.29358408]
[1725200115033,4.26484892,2453.5,2452.3,10.60640832]
[1725200115034,3.2078,2452.7,2452.3,10.60640832]
[1725200115238,4.26484892,2453.5,2452.3,10.60640832]
[1725200115239,3.2078,2453.4,2452.3,3.2078]
[1725200115441,3.2078,2454.3,2453.0,3.2078]
[1725200115950,3.21391945,2453.9,2453.1,5.35494313]
[1725200116134,3.2078,2453.7,2452.5,3.21391945]
[1725200116452,0.00611945,2453.9,2453.5,3.2078]
[1725200116639,3.2078,2454.8,2453.8,0.40754]
[1725200116842,3.2078,2454.2,2453.6,9.31887828]
[1725200117039,3.2078,2453.9,2453.6,5.1771577]
[1725200117241,3.2078,2453.9,2452.5,0.408]
[1725200117541,3.2078,2452.6,2450.1,3.2078]
[1725200117744,3.2078,2451.4,2450.8,0.408]
[1725200117945,3.2078,2451.4,2448.8,0.578]
[1725200117946,3.2078,2451.0,2449.8,14.1170894]
[1725200118134,0.00375539,2450.6,2450.2,8.75155659]
[1725200118329,3.21155539,2450.6,2450.2,0.00611945]
[1725200118545,0.00375539,2450.6,2450.3,9.49427017]
[1725200118732,3.2078,2451.7,2450.5,3.6166]
[1725200118934,3.2078,2452.0,2450.8,3.2078]
[1725200119144,3.2078,2452.3,2451.1,3.2078]
[1725200119333,3.2078,2451.4,2450.9,11.90945351]
[1725200119647,5.30091106,2453.0,2450.9,11.90945351]
[1725200119648,3.2078,2452.1,2451.2,5.28606147]
[1725200119957,3.2078,2452.1,2451.0,13.96585587]
[1725200120244,3.2078,2451.8,2451.3,5.25234923]
[1725200120537,3.2078,2451.8,2450.9,0.00611945]
[1725200120538,3.2078,2451.5,2450.9,0.00611945]
[1725200120738,4.69762515,2452.0,2447.4,1.02153]
[1725200120739,3.2078,2451.0,2449.9,0.408]
[1725200120931,3.2078,2450.7,2449.9,0.408]
[1725200121136,3.2078,2450.1,2449.4,0.5867]
[1725200121337,3.2078,2449.8,2449.2,0.19921114]
[1725200121539,3.2078,2449.5,2448.1,0.9923]
[1725200121742,3.2078,2449.0,2448.4,3.2078]
[1725200121939,0.00611945,2449.0,2448.6,0.00611945]
[1725200122543,0.00611945,2449.0,2448.7,5.37228582]
[1725200122838,0.00611945,2449.0,2448.6,0.00611945]
[1725200123146,0.40838,2448.8,2448.6,0.00611945]
[1725200123348,3.2078,2448.9,2448.6,0.00611945]
[1725200123349,11.71382767,2448.9,2448.6,0.00611945]
[1725200123646,4.42202767,2448.7,2448.6,4.09011945]
[1725200123847,3.2078,2448.9,2448.6,0.00611945]
[1725200124048,0.00611945,2449.0,2448.7,4.084]
[1725200124235,3.2078,2450.4,2448.7,3.6166]
[1725200124436,0.5955,2450.9,2448.7,3.6166]
[1725200124437,3.2078,2449.8,2448.9,0.4088]
[1725200124745,3.2078,2450.2,2449.0,5.26318092]
[1725200125050,3.2078,2449.9,2449.2,3.2078]
[1725200125248,3.2078,2450.2,2449.0,13.89806879]
[1725200125440,3.2078,2450.3,2449.3,5.29341523]
[1725200125635,3.2078,2451.5,2450.0,3.2078]
[1725200125945,1.0189,2453.8,2450.8,3.2078]
[1725200125946,3.2078,2451.8,2450.8,3.2078]
[1725200126132,3.2078,2451.8,2451.1,3.2078]
[1725200126336,3.2078,2451.8,2451.2,0.0750145]
[1725200126534,3.2078,2451.8,2451.2,5.30989841]
[1725200126737,40.8,2453.1,2451.2,5.30989841]
[1725200126738,3.2078,2451.5,2451.2,5.30989841]
[1725200126936,3.2078,2451.6,2451.2,5.30989841]
[1725200127136,40.8,2453.1,2450.1,1.0017]
[1725200127137,3.2078,2451.3,2450.1,1.0017]
[1725200127338,4.46839275,2451.4,2450.4,3.2078]
[1725200127547,3.2078,2451.2,2450.3,3.2078]
[1725200127750,3.2078,2451.4,2450.5,5.40058969]
[1725200127948,3.2078,2451.7,2450.8,0.40804]
[1725200128134,3.2078,2452.1,2450.8,3.2078]
[1725200128340,40.8,2453.1,2450.7,0.00611945]
[1725200128341,3.2078,2451.9,2450.9,5.24735114]
[1725200128637,3.2078,2451.9,2450.8,5.24735114]
[1725200128638,3.2078,2451.3,2450.8,5.24735114]
[1725200128845,3.2078,2451.4,2450.8,5.24735114]
[1725200129056,3.2078,2451.1,2450.7,0.00611945]
[1725200129353,3.2078,2451.4,2450.7,0.00611945]
[1725200129544,3.2078,2451.7,2450.8,5.27729212]
[1725200129748,3.2078,2451.5,2450.7,0.00611945]
[1725200130054,3.2078,2451.7,2450.8,13.67962987]
[1725200130242,3.2078,2451.0,2450.8,13.67962987]
[1725200130449,3.2078,2451.0,2450.7,0.00611945]
[1725200131043,8.64507477,2450.9,2449.0,0.6078]
[1725200131251,3.2078,2450.1,2449.1,0.07501464]
[1725200131545,3.2078,2450.1,2449.5,5.365594]
[1725200131750,3.2078,2450.5,2449.2,7.2902]
[1725200131949,3.2078,2450.8,2449.6,5.98499279]
[1725200132254,3.2078,2451.3,2450.4,3.2078]
[1725200132447,3.2078,2451.2,2450.5,0.4081]
[1725200132642,0.00611945,2451.1,2450.5,14.03495728]
[1725200132854,3.21391945,2451.1,2450.6,0.00611945]
[1725200133465,3.2078,2450.8,2450.7,5.23346733]
[1725200133771,3.2078,2450.9,2450.6,0.00611945]
[1725200134052,3.2078,2450.9,2450.7,5.41040983]
[1725200134252,0.00611945,2451.1,2450.7,9.49040983]
[1725200134454,0.00611945,2451.1,2450.9,0.40802]
[1725200134646,9.45e-06,2451.1,2451.0,4.48801]
[1725200134968,9.45e-06,2451.1,2451.0,18.33303948]
[1725200135157,9.45e-06,2451.1,2451.0,14.83251061]
[1725200135451,3.2078,2452.2,2451.4,0.40793]
[1725200135653,3.2078,2452.2,2451.2,3.2078]
[1725200135849,3.2078,2452.2,2451.5,13.5557901]
[1725200136058,0.6239,2453.7,2451.2,3.2078]
[1725200136059,3.2078,2452.9,2451.8,3.2078]
[1725200136245,3.2078,2452.9,2451.3,17.97483587]
[1725200136246,3.2078,2453.3,2452.5,0.40775]
[1725200136446,0.6038,2454.2,2452.5,0.40775]
[1725200136447,3.2078,2453.2,2452.5,0.40775]
[1725200136743,0.6038,2454.2,2452.6,5.30867082]
[1725200136744,3.2078,2453.5,2452.6,5.30867082]
[1725200137056,3.2078,2453.5,2453.0,0.40768]
[1725200137243,3.2078,2453.5,2453.1,0.40766]
[1725200137448,3.2078,2453.8,2453.1,12.73150255]
[1725200137649,3.2078,2453.5,2453.1,12.73150255]
[1725200137851,3.2078,2453.9,2453.1,12.73150255]
[1725200138043,0.40765,2453.2,2453.1,9.45e-06]
[1725200138451,10.60591347,2453.2,2453.1,9.45e-06]
[1725200138643,11.50277,2453.2,2453.1,9.45e-06]
[1725200138846,11.50277,2453.2,2450.9,0.408]
[1725200138847,0.40788,2451.9,2450.9,0.408]
[1725200139046,3.2078,2451.8,2450.1,3.2078]
[1725200139350,0.20886424,2453.4,2449.7,1.6188]
[1725200139351,3.2078,2453.0,2452.4,0.40778]
[1725200139645,3.2078,2452.7,2451.5,0.6032]
[1725200139849,4.37932,2453.3,2451.6,3.28273467]
[1725200139850,3.2078,2452.8,2451.6,3.28273467]
[1725200140060,3.2078,2452.8,2451.9,0.00611945]
[1725200140255,3.2078,2452.8,2452.0,3.2078]
[1725200140256,0.00611945,2452.4,2452.0,3.2078]
[1725200140444,0.00611945,2452.4,2452.3,0.40778]
[1725200140651,0.00611945,2452.4,2452.3,6.40778]
[1725200140955,3.2078,2453.2,2452.3,26.96635159]
[1725200141146,3.2078,2453.2,2453.1,0.40766]
[1725200141348,3.2078,2453.2,2453.1,4.076]
[1725200141551,3.2078,2453.5,2453.1,9.37803509]
[1725200141853,3.2078,2453.2,2453.1,0.00611945]
[1725200142355,3.2078,2453.7,2453.1,18.06100461]
[1725200142558,3.2078,2453.4,2453.1,5.29827611]
[1725200142744,3.2078,2453.9,2453.3,0.40762]
[1725200142950,4.72096613,2454.7,2453.2,8.80024048]
[1725200142951,3.2078,2453.7,2453.2,8.80024048]
[1725200143156,3.2078,2453.8,2453.4,12.49415027]
[1725200143356,0.2059011,2453.7,2453.3,13.68439714]
[1725200143556,0.40761,2453.4,2453.3,8.39224048]
[1725200143857,3.2078,2453.5,2453.1,0.00611945]
[1725200144059,3.2078,2453.2,2453.1,0.00611945]
[1725200144249,3.2078,2453.2,2452.0,3.6158]
[1725200144250,4.61389238,2453.4,2452.4,0.40778]
[1725200144555,3.2078,2452.9,2452.1,9.05008509]
[1725200144756,3.2078,2452.9,2452.1,8.64225509]
[1725200144757,3.2078,2452.6,2452.1,8.64225509]
[1725200144957,3.2078,2452.3,2452.0,0.408]
[1725200145258,3.2078,2452.2,2452.0,4.0784]
[1725200145466,0.00611945,2452.4,2452.1,5.25653657]
[1725200145853,0.00611945,2452.4,2452.2,4.0776]
[1725200146160,3.2078,2452.3,2451.9,0.00611945]
[1725200146357,3.2078,2452.0,2451.9,0.00611945]
[1725200147064,13.9002012,2452.0,2451.9,0.00611945]
[1725200147268,13.9002012,2452.0,2450.3,0.408]
[1725200147269,14.37408944,2452.0,2450.3,0.408]
[1725200147468,3.2078,2450.7,2449.9,0.4088]
[1725200147755,3.2078,2450.6,2449.9,9.51193268]
[1725200147962,3.2078,2451.0,2450.0,5.28397401]
[1725200148361,3.2078,2451.3,2450.8,0.40804]
[1725200148551,3.21391945,2451.3,2450.8,0.00611945]
[1725200148757,3.2078,2450.9,2450.8,0.00611945]
[1725200148953,3.21391945,2451.3,2450.9,5.20808842]
[1725200149256,3.21391945,2451.3,2450.9,4.08]
[1725200149456,0.00611945,2451.3,2451.0,13.85860356]
[1725200149662,0.00611945,2451.3,2451.0,5.39291937]
[1725200149663,3.2078,2451.1,2451.0,5.39291937]
[1725200149960,3.2078,2451.1,2450.8,0.00611945]
[1725200150165,7.2878,2451.1,2450.8,0.00611945]
[1725200150351,4.08,2451.0,2450.8,0.00611945]
[1725200150865,3.2078,2450.8,2449.1,3.2078]
[1725200151049,3.2078,2449.7,2449.1,3.2078]
[1725200151249,3.2078,2449.7,2449.6,5.31342989]
[1725200151458,3.2078,2449.9,2449.2,20.98750026]
[1725200151656,3.2078,2449.9,2449.2,3.2078]
[1725200151956,9.45e-06,2449.8,2449.7,0.40823]
[1725200152151,9.45e-06,2449.8,2449.3,13.81523993]
[1725200152467,9.45e-06,2449.8,2449.7,14.21735048]
[1725200152757,3.2078,2450.8,2450.4,0.40811]
[1725200153059,3.2078,2450.8,2450.1,3.2078]
[1725200153265,4.5249882,2450.7,2450.5,13.66682235]
[1725200153455,3.41409672,2450.6,2449.5,13.7181731]
[1725200153651,3.2078,2449.8,2448.7,0.40839]
[1725200153856,0.578,2450.6,2448.6,3.2078]
[1725200153857,3.2078,2449.4,2449.3,5.32847107]
[1725200154167,3.2078,2449.4,2449.0,13.92705456]
[1725200154353,0.00611945,2449.5,2449.0,13.92705456]
[1725200154354,0.00611945,2449.5,2449.1,4.0832]
[1725200154662,9.45e-06,2449.5,2449.3,9.22400371]
[1725200154965,3.2078,2449.9,2449.8,0.40821]
[1725200155262,0.5794,2451.5,2449.8,0.40821]
[1725200155263,3.2078,2450.8,2449.8,15.67228706]
[1725200155453,3.2078,2451.3,2450.2,3.2078]
[1725200155853,3.2078,2451.5,2450.4,3.2078]
[1725200156054,0.00611945,2451.2,2450.7,0.41417945]
[1725200156254,0.20617812,2451.1,2450.7,3.21391945]
[1725200156460,0.00611945,2451.2,2450.8,13.29427928]
[1725200156660,0.00611945,2451.2,2451.0,0.40801]
[1725200156866,0.00611945,2451.2,2451.1,0.408]
[1725200157063,3.2078,2452.2,2451.1,18.76202834]
[1725200157255,3.2078,2452.2,2451.2,0.40797]
[1725200157652,3.2078,2452.2,2451.3,5.3614014]
[1725200157856,3.2078,2452.8,2452.1,3.2078]
[1725200158057,3.2078,2452.6,2452.2,0.00611945]
[1725200158258,3.2078,2452.6,2452.2,13.73592288]
[1725200158456,3.6156,2452.3,2452.2,0.00611945]
[1725200158660,0.00611945,2452.1,2451.1,0.408]
[1725200158860,3.2078,2451.6,2451.1,0.408]
[1725200159066,3.2078,2451.5,2451.3,5.39374508]
[1725200159276,3.2078,2451.5,2450.6,0.408]
[1725200159574,3.2078,2451.5,2451.0,5.30672676]
[1725200159757,0.00611945,2452.1,2450.8,0.00611945]
[1725200159758,3.2078,2451.8,2450.8,0.00611945]
[1725200159956,3.2078,2451.0,2450.8,0.00611945]
[1725200160257,0.32581442,2450.9,2450.8,0.00611945]
[1725200160665,3.2078,2451.0,2450.8,4.08611945]
[1725200160869,4.48803,2450.9,2450.8,4.25006535]
[1725200161173,4.48803,2450.9,2448.6,3.7766]
[1725200161174,3.2078,2450.7,2448.6,3.7766]
[1725200161359,3.2078,2449.0,2448.4,0.4088]
[1725200161565,3.2078,2449.4,2448.4,3.6166]
[1725200161762,3.2078,2449.7,2448.7,5.35056569]
[1725200161971,0.39,2450.4,2448.5,7.42664569]
[1725200161972,3.2078,2449.4,2448.5,7.42664569]
[1725200162272,4.45023669,2449.3,2449.0,0.00611945]
[1725200162456,3.2078,2449.2,2449.0,0.00611945]
[1725200162864,3.2078,2450.5,2449.1,9.68153318]
[1725200163164,3.2078,2449.3,2449.0,0.00611945]
[1725200163370,7.53709898,2449.3,2449.0,0.00611945]
[1725200163565,3.2078,2449.5,2449.0,0.00611945]
[1725200163767,3.2078,2449.6,2449.1,5.33128008]
[1725200163963,3.2078,2449.4,2449.1,13.94273643]
[1725200164173,3.2078,2449.4,2449.0,0.00611945]
[1725200164468,0.00611945,2449.6,2449.0,0.00611945]
[1725200164469,0.63441377,2449.5,2449.2,8.78677719]
[1725200164666,0.00611945,2449.6,2449.3,4.0824]
[1725200164882,3.2078,2450.6,2449.5,3.6166]
[1725200165068,3.2078,2451.2,2450.0,3.2078]
[1725200165272,4.7034972,2450.9,2449.6,17.33027188]
[1725200165479,3.8808672,2450.9,2450.8,0.40805]
[1725200165662,1.45022791,2452.6,2450.8,0.40805]
[1725200165663,3.2078,2451.7,2450.8,4.08]
[1725200165863,3.2078,2451.4,2450.8,5.21049712]
[1725200166063,1.56186285,2452.8,2451.0,0.00611945]
[1725200166064,4.7034972,2452.2,2451.0,0.00611945]
[1725200166263,3.2078,2451.1,2449.5,3.6166]
[1725200166473,1.04246791,2451.9,2449.5,3.6166]
[1725200166474,3.2078,2450.7,2449.5,3.6166]
[1725200166672,3.2078,2450.7,2450.1,13.76378353]
[1725200166865,3.2078,2450.4,2450.1,13.76378353]
[1725200167060,3.2078,2450.4,2449.4,0.40827]
[1725200167269,3.2078,2450.1,2449.3,0.40829]
[1725200167568,3.21391945,2450.1,2449.7,13.99529557]
[1725200167768,3.21391945,2450.1,2449.7,0.00611945]
[1725200167969,0.00611945,2450.1,2449.8,5.27736053]
[1725200168271,3.21391945,2450.1,2449.7,0.00611945]
[1725200168486,3.2078,2449.8,2449.7,0.00611945]
[1725200168663,3.21391945,2450.1,2449.7,0.00611945]
[1725200169578,1.04246791,2451.3,2449.8,21.15090822]
[1725200169579,3.2078,2451.0,2449.8,21.15090822]
[1725200169767,3.2078,2451.5,2450.2,0.40813]
[1725200169964,3.2078,2451.5,2449.9,3.2078]
[1725200169965,0.40801,2451.0,2449.9,3.2078]
[1725200170169,4.54192174,2450.9,2450.8,3.2078]
[1725200170362,3.2078,2451.4,2450.3,13.80304464]
[1725200170665,3.2078,2451.4,2450.8,5.38906072]
[1725200170866,4.40041767,2451.6,2450.8,5.38906072]
[1725200170867,3.2078,2451.1,2450.8,5.38906072]
[1725200171062,0.40806,2450.7,2450.6,0.00611945]
[1725200171265,3.2078,2450.7,2450.6,0.00611945]
[1725200171476,3.2078,2450.7,2449.2,0.408]
[1725200171477,17.59036829,2450.7,2449.2,3.2078]
[1725200171776,17.59036829,2450.7,2448.2,0.5814]
[1725200171777,3.2078,2449.8,2448.6,0.4088]
[1725200171963,3.2078,2449.5,2448.7,0.0750217]
[1725200172167,0.40828,2449.4,2448.7,13.59637174]
[1725200172369,3.2078,2448.9,2448.7,13.59637174]
[1725200172569,3.2078,2448.9,2448.6,0.00611945]
[1725200172774,4.30176829,2448.8,2448.6,0.00611945]
[1725200173079,4.084,2448.9,2448.6,0.00611945]
[1725200173264,3.21391945,2449.0,2448.6,0.00611945]
[1725200173469,0.00611945,2449.0,2448.6,0.00611945]
[1725200173671,0.00611945,2449.0,2448.7,5.21344346]
[1725200173977,0.00611945,2449.0,2448.7,4.49239]
[1725200174284,0.00611945,2449.0,2448.8,4.0832]
[1725200174482,3.2078,2450.5,2449.4,0.40828]
[1725200174683,3.2078,2451.1,2450.1,3.2078]
[1725200174870,3.2078,2451.1,2449.6,3.2078]
[1725200175064,3.2078,2451.1,2448.9,2.0761]
[1725200175065,3.2078,2450.7,2450.2,5.27877055]
[1725200175281,3.2078,2450.7,2449.7,13.83528134]
[1725200175575,7.22500289,2450.6,2450.0,0.00611945]
[1725200175767,3.61588,2450.6,2450.0,0.00611945]
[1725200175968,3.2078,2450.8,2450.1,5.23022503]
[1725200176469,3.2078,2450.8,2450.0,0.00611945]
[1725200176470,4.32507973,2450.7,2450.0,0.00611945]
[1725200176665,3.2078,2451.1,2450.2,14.02588197]
[1725200176868,3.2078,2451.4,2450.6,0.40808]
[1725200177069,4.70537498,2451.5,2450.6,3.2078]
[1725200177381,3.2078,2451.9,2450.7,11.7849305]
[1725200177584,3.2078,2451.9,2450.8,0.40803]
[1725200177873,3.2078,2451.6,2451.1,0.00611945]
[1725200178073,3.2078,2451.8,2451.1,0.00611945]
[1725200178274,7.80184547,2451.8,2451.1,0.00611945]
[1725200178471,3.2078,2451.8,2451.1,0.00611945]
[1725200179081,3.2078,2451.5,2451.1,0.00611945]
[1725200179583,3.2078,2451.2,2451.1,0.00611945]
[1725200180085,17.68641541,2451.2,2449.5,3.2078]
[1725200180384,3.2078,2450.6,2449.5,3.2078]
[1725200180580,0.40816,2450.1,2449.9,5.39476295]
[1725200180779,3.2078,2450.2,2449.0,0.5347]
[1725200180972,0.00611945,2449.8,2449.4,0.00611945]
[1725200181172,0.00611945,2449.8,2449.7,5.40870908]
[1725200181373,0.00611945,2449.8,2449.4,0.00611945]
[1725200181374,4.08851945,2449.8,2449.4,0.00611945]
[1725200181575,0.00611945,2449.8,2449.4,0.00611945]
[1725200181976,0.00611945,2449.8,2449.5,9.42752976]
[1725200182180,0.00611945,2449.8,2449.5,18.01813057]
[1725200182372,0.00611945,2449.8,2449.6,4.0824]
[1725200182776,0.00611945,2449.8,2449.7,9.29368219]
[1725200183177,0.00611945,2449.8,2449.7,10.49063]
[1725200183375,3.2078,2450.8,2449.7,23.95431358]
[1725200183587,3.2078,2451.3,2450.7,3.2078]
[1725200183772,3.2078,2451.3,2450.2,3.2078]
[1725200183980,4.64433746,2451.7,2450.8,14.47599279]
[1725200184285,4.64433746,2451.8,2449.9,4.0808]
[1725200184286,0.40788,2451.8,2450.6,13.74637046]
[1725200184486,3.2078,2451.9,2451.0,0.00611945]
[1725200184691,3.2078,2452.3,2451.3,0.40795]
[1725200184983,1.56186285,2453.0,2451.1,3.2078]
[1725200184984,3.2078,2452.0,2451.1,0.1408566]
[1725200185382,3.2078,2452.0,2451.0,0.56991945]
[1725200185383,3.2078,2451.7,2451.0,0.00611945]
[1725200185578,5.73062482,2452.8,2451.0,0.00611945]
[1725200185579,3.2078,2451.4,2451.0,0.00611945]
[1725200185976,4.68815691,2451.6,2451.0,0.00611945]
[1725200186178,3.2078,2452.1,2451.1,13.66323351]
[1725200186377,3.2078,2452.1,2451.2,0.40797]
[1725200186582,3.2078,2451.7,2451.1,8.37334215]